bitfinex/quotes_BTCUSD_20250718
["timestamp","ask_amount","ask_price","bid_price","bid_amount"]
[1752875323824,0.00530659,117930.0,117920.0,1.05713336]
[1752875324385,0.00530659,117930.0,117920.0,1.33108004]
[1752875324786,0.00530659,117930.0,117920.0,1.05912336]
[1752875325019,0.00530659,117930.0,117920.0,1.23976666]
[1752875327025,0.00530659,117930.0,117920.0,0.51521]
[1752875327246,0.00530659,117930.0,117920.0,1.23976666]
[1752875327446,0.00032659,117930.0,117920.0,1.23976666]
[1752875327638,0.00032659,117930.0,117920.0,1.24282666]
[1752875328126,0.00237659,117930.0,117920.0,1.24282666]
[1752875328286,0.00237659,117930.0,117920.0,1.23976666]
[1752875329229,0.00530659,117930.0,117920.0,0.17322]
[1752875329432,0.00530659,117930.0,117920.0,0.003]
[1752875329433,0.01750659,117930.0,117920.0,0.003]
[1752875329637,0.05327725,117930.0,117920.0,0.1418]
[1752875329994,0.05327725,117930.0,117920.0,0.1408]
[1752875330427,0.01750659,117930.0,117920.0,0.1408]
[1752875331018,0.01750659,117930.0,117920.0,0.1388]
[1752875331414,0.01750659,117930.0,117920.0,0.1398]
[1752875332592,0.01750659,117930.0,117920.0,0.1406]
[1752875333015,0.01750659,117930.0,117920.0,0.001]
[1752875334358,0.01750659,117930.0,117920.0,0.14072]
[1752875334583,0.01750659,117930.0,117920.0,0.001]
[1752875334765,0.01750659,117930.0,117920.0,0.14064]
[1752875339130,0.01750659,117930.0,117920.0,0.001]
[1752875339329,0.01750659,117930.0,117920.0,0.14044]
[1752875339546,0.01750659,117930.0,117920.0,0.001]
[1752875339763,0.01750659,117930.0,117920.0,0.14036]
[1752875339998,0.01330659,117930.0,117920.0,0.14036]
[1752875340434,0.01750659,117930.0,117920.0,0.14032]
[1752875341050,0.01330659,117930.0,117920.0,0.14032]
[1752875342258,0.01330659,117930.0,117920.0,0.001]
[1752875342519,0.01330659,117930.0,117920.0,0.14028]
[1752875342823,0.01750659,117930.0,117920.0,0.001]
[1752875343566,0.01330659,117930.0,117920.0,0.001]
[1752875345910,0.00530659,117930.0,117920.0,0.001]
[1752875348107,0.00530659,117930.0,117910.0,0.53321833]
[1752875348301,0.00296,117920.0,117910.0,0.53321833]
[1752875348499,0.00499,117920.0,117910.0,0.53321833]
[1752875349062,0.02126217,117920.0,117910.0,0.53321833]
[1752875350114,0.02126217,117920.0,117910.0,0.53421833]
[1752875351059,0.02126217,117920.0,117910.0,0.0172]
[1752875351262,0.02126217,117920.0,117910.0,0.27283324]
[1752875352289,0.02126217,117920.0,117910.0,0.27183324]
[1752875352495,0.02126217,117920.0,117910.0,0.27283324]
[1752875353064,0.02126217,117920.0,117910.0,0.36248389]
[1752875353736,0.02126217,117920.0,117910.0,0.36348389]
[1752875354587,0.02126217,117920.0,117910.0,0.37768389]
[1752875356790,0.02126217,117920.0,117910.0,0.36248389]
[1752875360875,0.02126217,117920.0,117910.0,0.0163]
[1752875361109,0.02126217,117920.0,117900.0,0.39428389]
[1752875361306,0.02126217,117920.0,117910.0,0.13812]
[1752875361541,0.10677245,117920.0,117910.0,0.13812]
[1752875361955,0.11828235,117920.0,117910.0,0.50060389]
[1752875362369,0.10677245,117920.0,117910.0,0.13808]
[1752875364401,0.10777245,117920.0,117910.0,0.13808]
[1752875364949,0.10777245,117920.0,117900.0,0.39428389]
[1752875365186,0.10777245,117920.0,117910.0,0.13784]
[1752875365788,0.10677245,117920.0,117910.0,0.13784]
[1752875365998,0.10677245,117920.0,117900.0,0.39428389]
[1752875366180,0.11828235,117920.0,117910.0,0.13768]
[1752875366639,0.11828235,117920.0,117900.0,0.39428389]
[1752875366848,0.11828235,117920.0,117910.0,0.13768]
[1752875367437,0.10677245,117920.0,117910.0,0.15388]
[1752875368187,0.10777245,117920.0,117910.0,0.53206389]
[1752875368673,0.10777245,117920.0,117910.0,0.16958]
[1752875369521,0.10777245,117920.0,117910.0,0.16938]
[1752875372949,0.10777245,117920.0,117910.0,0.44124861]
[1752875373975,0.10777245,117920.0,117910.0,0.44080861]
[1752875374641,0.14017345,117920.0,117890.0,0.00319]
[1752875374861,0.14017345,117920.0,117900.0,0.44100861]
[1752875375054,0.00298,117910.0,117900.0,0.44100861]
[1752875375278,0.0051,117910.0,117900.0,0.44100861]
[1752875375498,0.0051,117910.0,117900.0,0.30396861]
[1752875375716,0.0051,117910.0,117900.0,0.44096861]
[1752875375983,0.0051,117910.0,117900.0,0.30396861]
[1752875376171,0.09061028,117910.0,117890.0,0.44296861]
[1752875376496,0.00298,117900.0,117890.0,0.1711]
[1752875376717,0.00298,117900.0,117890.0,0.44496861]
[1752875376718,0.0051,117900.0,117890.0,0.44496861]
[1752875377298,0.0051,117900.0,117890.0,0.44296861]
[1752875377461,0.0051,117900.0,117890.0,0.44096861]
[1752875377872,0.17573528,117900.0,117890.0,0.61061828]
[1752875378078,0.22075702,117900.0,117890.0,0.61061828]
[1752875378493,0.22075702,117900.0,117890.0,0.61057828]
[1752875378701,0.22075702,117900.0,117890.0,0.47361828]
[1752875379002,0.22075702,117900.0,117890.0,0.61045828]
[1752875380064,0.22075702,117900.0,117890.0,0.47361828]
[1752875380314,0.22075702,117900.0,117890.0,0.61033828]
[1752875381251,0.22923871,117900.0,117890.0,0.61245828]
[1752875381456,0.23772018,117900.0,117890.0,0.61245828]
[1752875381665,0.24620194,117900.0,117890.0,0.61245828]
[1752875381999,0.24620194,117900.0,117890.0,0.61033828]
[1752875382360,0.24620194,117900.0,117890.0,0.61021828]
[1752875382582,0.24620194,117900.0,117890.0,0.47361828]
[1752875382784,0.24620194,117900.0,117890.0,0.61021828]
[1752875383134,0.24620194,117900.0,117890.0,0.33834967]
[1752875383352,0.24620194,117900.0,117890.0,0.47361828]
[1752875383574,0.24620194,117900.0,117890.0,0.61017828]
[1752875384642,0.24620194,117900.0,117890.0,0.33830967]
[1752875384866,0.24620194,117900.0,117890.0,0.61017828]
[1752875386649,0.24620194,117900.0,117890.0,0.47361828]
[1752875386852,0.24620194,117900.0,117890.0,0.33818967]
[1752875387063,0.24620194,117900.0,117890.0,0.61005828]
[1752875388199,0.24620194,117900.0,117890.0,0.60997828]
[1752875388558,0.24620194,117900.0,117890.0,0.60989828]
[1752875389094,0.24620194,117900.0,117890.0,0.47361828]
[1752875389294,0.24620194,117900.0,117890.0,0.60981828]
[1752875389741,0.23772047,117900.0,117890.0,0.60981828]
[1752875391022,0.18971873,117900.0,117890.0,0.61193828]
[1752875391206,0.18971873,117900.0,117890.0,0.61512828]
[1752875395622,0.18971873,117900.0,117890.0,0.61484828]
[1752875397235,0.18123704,117900.0,117890.0,0.61484828]
[1752875405552,0.18123704,117900.0,117890.0,0.34297967]
[1752875405761,0.31323031,117900.0,117890.0,0.03422]
[1752875405963,0.30767855,117900.0,117890.0,0.16942]
[1752875406161,0.33314955,117900.0,117890.0,0.44128861]
[1752875406368,0.33314955,117900.0,117890.0,0.61093828]
[1752875406784,0.33314955,117900.0,117890.0,0.44128861]
[1752875407001,0.33314955,117900.0,117890.0,0.0321]
[1752875407402,0.74013816,117900.0,117890.0,0.0321]
[1752875407628,0.46826955,117900.0,117890.0,0.16722]
[1752875408050,0.17813208,117890.0,117880.0,0.47391975]
[1752875408256,0.24478224,117890.0,117880.0,0.20205114]
[1752875408453,0.24771224,117890.0,117880.0,0.47391975]
[1752875409298,0.24771224,117890.0,117880.0,0.47689975]
[1752875409510,0.33029252,117890.0,117880.0,0.03638]
[1752875409723,0.60509113,117890.0,117880.0,0.0185]
[1752875409934,0.35869652,117890.0,117880.0,0.13748]
[1752875410437,0.35869652,117890.0,117880.0,0.13776]
[1752875410722,0.35869652,117890.0,117880.0,0.16986]
[1752875411120,0.29405636,117890.0,117880.0,0.16986]
[1752875411282,0.29405636,117890.0,117880.0,0.16798]
[1752875411473,0.29405636,117890.0,117880.0,0.0321]
[1752875411663,0.29605636,117890.0,117880.0,0.0321]
[1752875413110,0.29605636,117890.0,117880.0,0.16798]
[1752875413287,0.38181598,117890.0,117880.0,0.0157]
[1752875413489,0.38181598,117890.0,117880.0,0.15142]
[1752875413689,0.38181598,117890.0,117880.0,0.0157]
[1752875414412,0.38181598,117890.0,117880.0,0.0319]
[1752875432074,0.65368459,117890.0,117880.0,0.0319]
[1752875432308,0.38181598,117890.0,117880.0,0.0319]
[1752875437723,0.65368459,117890.0,117880.0,0.0319]
[1752875439747,0.38181598,117890.0,117880.0,0.0319]
[1752875442934,0.65368459,117890.0,117880.0,0.0319]
[1752875450916,0.78780459,117890.0,117880.0,0.0319]
[1752875467788,0.17814711,117880.0,117870.0,0.03056017]
[1752875468004,0.48497701,117880.0,117870.0,0.03056017]
[1752875468213,0.48812701,117880.0,117870.0,0.03056017]
[1752875468358,0.51360301,117880.0,117870.0,0.03056017]
[1752875469650,0.51360301,117880.0,117870.0,0.03156017]
[1752875473692,0.52666058,117880.0,117870.0,0.03156017]
[1752875477335,0.52666058,117880.0,117870.0,0.03056017]
[1752875479056,0.52766058,117880.0,117870.0,0.03056017]
[1752875483735,0.79952919,117880.0,117870.0,0.03056017]
[1752875484140,0.52766058,117880.0,117870.0,0.03056017]
[1752875486581,0.79952919,117880.0,117870.0,0.03056017]
[1752875486827,1.13952919,117880.0,117870.0,0.03056017]
[1752875487474,0.86766058,117880.0,117870.0,0.03056017]
[1752875487890,1.13952919,117880.0,117870.0,0.03056017]
[1752875490452,1.15407004,117880.0,117870.0,0.03056017]
[1752875490912,0.88220143,117880.0,117870.0,0.03056017]
[1752875491116,1.15407004,117880.0,117870.0,0.03056017]
[1752875491295,0.88220143,117880.0,117870.0,0.03056017]
[1752875491527,1.15407004,117880.0,117870.0,0.03056017]
[1752875491738,0.88220143,117880.0,117870.0,0.03056017]
[1752875492005,1.42593865,117880.0,117870.0,0.00046017]
[1752875492216,0.18667746,117850.0,117840.0,1e-08]
[1752875492449,0.18667746,117850.0,117840.0,0.00012648]
[1752875492450,0.44114606,117850.0,117840.0,0.00012648]
[1752875492673,0.44316606,117850.0,117840.0,0.03052648]
[1752875492870,0.47159906,117850.0,117840.0,0.03052648]
[1752875493344,1.08346767,117850.0,117840.0,0.03052648]
[1752875493546,1.09800852,117850.0,117840.0,0.03052648]
[1752875493761,1.09900852,117850.0,117840.0,0.03052648]
[1752875493982,1.09800852,117850.0,117840.0,0.03052648]
[1752875494407,1.10000852,117850.0,117840.0,0.03052648]
[1752875494651,1.10100852,117850.0,117840.0,0.03052648]
[1752875494861,1.10100852,117850.0,117840.0,0.01532648]
[1752875496578,1.10100852,117850.0,117840.0,0.03052648]
[1752875496785,1.10100852,117850.0,117840.0,0.01532648]
[1752875497443,1.10100852,117850.0,117840.0,0.00012648]
[1752875497577,0.82913991,117850.0,117840.0,0.01632648]
[1752875497781,1.10100852,117850.0,117840.0,0.01632648]
[1752875499075,1.10100852,117850.0,117840.0,0.00012648]
[1752875501236,0.82913991,117850.0,117840.0,0.00012648]
[1752875501445,1.10100852,117850.0,117840.0,0.00012648]
[1752875502483,0.17820758,117840.0,117830.0,0.0314]
[1752875502655,1.0315047,117840.0,117830.0,0.0314]
[1752875503103,1.0569927,117840.0,117830.0,0.0314]
[1752875504479,1.0589927,117840.0,117830.0,0.0314]
[1752875505874,1.0609927,117840.0,117830.0,0.0314]
[1752875506089,0.18672499,117820.0,117810.0,0.00315]
[1752875506295,0.49824971,117820.0,117810.0,0.0053]
[1752875506642,0.52373871,117820.0,117810.0,0.0367]
[1752875507150,0.86373871,117820.0,117810.0,0.0367]
[1752875507354,0.87732137,117820.0,117810.0,0.0387]
[1752875507556,1.14918998,117820.0,117810.0,0.0387]
[1752875508373,0.87732137,117820.0,117810.0,0.0387]
[1752875508591,1.14918998,117820.0,117810.0,0.0387]
[1752875508799,1.16575083,117820.0,117810.0,0.0387]
[1752875509002,1.16575083,117820.0,117810.0,0.03555]
[1752875509839,1.16870083,117820.0,117810.0,0.03555]
[1752875510285,1.16575083,117820.0,117810.0,0.03555]
[1752875510698,1.16870083,117820.0,117810.0,0.0334]
[1752875511571,1.44056944,117820.0,117810.0,0.0334]
[1752875512614,1.44056944,117820.0,117810.0,0.002]
[1752875512897,1.45639202,117820.0,117810.0,1e-08]
[1752875513144,1.4563924,117820.0,117810.0,1e-08]
[1752875513410,1.4643924,117820.0,117810.0,1e-08]
[1752875513624,1.4663924,117820.0,117810.0,1e-08]
[1752875514029,1.4643924,117820.0,117810.0,1e-08]
[1752875514242,0.17825296,117810.0,117800.0,0.0311]
[1752875514451,0.75673147,117810.0,117800.0,0.0311]
[1752875514641,0.53280895,117800.0,117790.0,0.0315]
[1752875514855,1.31321907,117800.0,117790.0,0.0315]
[1752875514983,1.31616907,117800.0,117790.0,0.0315]
[1752875515220,1.37505186,117800.0,117790.0,0.0315]
[1752875515420,1.37505186,117800.0,117790.0,0.03199757]
[1752875515822,1.40254786,117800.0,117790.0,0.03199757]
[1752875516848,1.13067925,117800.0,117790.0,0.03199757]
[1752875517268,1.13167925,117800.0,117790.0,0.03199757]
[1752875517473,1.40354786,117800.0,117790.0,0.03199757]
[1752875518693,1.40354179,117800.0,117790.0,0.03199757]
[1752875521774,0.85980457,117800.0,117790.0,0.03199757]
[1752875521996,1.40354179,117800.0,117790.0,0.03199757]
[1752875522780,0.85980457,117800.0,117790.0,0.03199757]
[1752875522939,1.40354179,117800.0,117790.0,0.03199757]
[1752875523145,0.85980457,117800.0,117790.0,0.03199757]
[1752875523489,1.40354179,117800.0,117790.0,0.03199757]
[1752875530837,2.2376104,117800.0,117790.0,1e-08]
[1752875531315,1.30092178,117800.0,117790.0,0.03310001]
[1752875531515,1.28013523,117800.0,117790.0,0.03816001]
[1752875531732,0.94205523,117800.0,117790.0,0.03816001]
[1752875531944,0.80681523,117800.0,117790.0,0.03816001]
[1752875532161,1.07014299,117800.0,117790.0,0.03816001]
[1752875532395,0.31112419,117800.0,117790.0,0.03816001]
[1752875532605,0.44976419,117800.0,117790.0,0.31002862]
[1752875532815,0.22761391,117800.0,117790.0,0.31002862]
[1752875533031,0.34920665,117800.0,117790.0,0.40134874]
[1752875533236,0.33471791,117800.0,117790.0,0.40134874]
[1752875533653,0.33671791,117800.0,117790.0,0.40134874]
[1752875533891,0.17142723,117800.0,117790.0,0.40134874]
[1752875534096,0.04131553,117800.0,117790.0,0.40983842]
[1752875534311,0.17230679,117800.0,117790.0,0.57963212]
[1752875534525,0.17979546,117800.0,117790.0,0.58812173]
[1752875534741,0.17979546,117800.0,117790.0,0.58163212]
[1752875535222,0.02159296,117820.0,117810.0,0.23601696]
[1752875535438,0.16417708,117840.0,117830.0,0.20203206]
[1752875535651,0.25817329,117840.0,117830.0,0.20413206]
[1752875535861,0.25817329,117840.0,117830.0,0.57028079]
[1752875536076,0.11945329,117840.0,117830.0,0.57028079]
[1752875536303,0.12793937,117840.0,117830.0,0.20709206]
[1752875536528,0.01697115,117840.0,117830.0,0.57876744]
[1752875536743,0.01746839,117840.0,117830.0,0.57028079]
[1752875536949,0.01746839,117840.0,117830.0,0.57876752]
[1752875537156,0.00898267,117840.0,117830.0,0.57876752]
[1752875537372,0.01746839,117840.0,117830.0,0.57876752]
[1752875537816,0.02595425,117840.0,117830.0,0.57028079]
[1752875538019,0.02595425,117840.0,117830.0,0.62992797]
[1752875538020,0.00049717,117840.0,117830.0,0.62992797]
[1752875538448,0.13897717,117840.0,117830.0,0.62992797]
[1752875538895,0.00049717,117840.0,117830.0,0.62992797]
[1752875539833,0.00049717,117840.0,117830.0,0.63092797]
[1752875540718,0.00049717,117840.0,117830.0,0.63192797]
[1752875544106,0.32477684,117860.0,117850.0,0.20150725]
[1752875544358,0.16365967,117860.0,117850.0,0.56679598]
[1752875544563,0.16365967,117860.0,117850.0,0.56975598]
[1752875544564,0.17607932,117860.0,117850.0,0.56975598]
[1752875544765,0.34577217,117860.0,117850.0,0.56975598]
[1752875545090,0.34577217,117860.0,117850.0,0.20656725]
[1752875545332,0.34677217,117860.0,117850.0,0.20656725]
[1752875546052,0.34877217,117860.0,117850.0,0.20656725]
[1752875546472,0.34028796,117860.0,117850.0,0.20656725]
[1752875547039,0.33928796,117860.0,117850.0,0.20656725]
[1752875547235,0.33728796,117860.0,117850.0,0.20656725]
[1752875547437,0.32462795,117860.0,117850.0,0.20656725]
[1752875547638,0.33311252,117860.0,117850.0,0.20656725]
[1752875548676,0.32462831,117860.0,117850.0,0.03686]
[1752875549294,0.32462831,117860.0,117850.0,0.20656725]
[1752875549467,0.33694889,117860.0,117850.0,0.20656725]
[1752875549669,0.33674889,117860.0,117850.0,0.03686]
[1752875550069,0.32826447,117860.0,117850.0,0.03686]
[1752875551775,0.32826447,117860.0,117850.0,0.20656725]
[1752875555414,0.32826447,117860.0,117850.0,0.03686]
[1752875557997,0.32627447,117860.0,117850.0,0.03686]
[1752875561735,0.18863447,117860.0,117850.0,0.03686]
[1752875561982,0.32539447,117860.0,117850.0,0.03686]
[1752875567230,0.32752447,117860.0,117850.0,0.03686]
[1752875567437,0.32752447,117860.0,117850.0,0.0339]
[1752875568514,0.33061447,117860.0,117850.0,0.0339]
[1752875569073,0.32539447,117860.0,117850.0,0.03684]
[1752875570467,0.32475447,117860.0,117850.0,0.03684]
[1752875576059,0.32443447,117860.0,117850.0,0.03684]
[1752875576305,0.32443447,117860.0,117850.0,0.30899105]
[1752875578157,0.32443447,117860.0,117850.0,0.03684]
[1752875578523,0.32443447,117860.0,117850.0,0.30899105]
[1752875578962,0.32443447,117860.0,117850.0,0.03684]
[1752875579170,0.48889829,117860.0,117830.0,0.0163]
[1752875579338,0.17820758,117840.0,117830.0,0.0163]
[1752875579594,0.45248863,117840.0,117830.0,0.0163]
[1752875579911,0.45248863,117840.0,117820.0,0.04136244]
[1752875579912,0.17822271,117830.0,117820.0,0.0322]
[1752875580079,0.32260271,117830.0,117820.0,0.0163]
[1752875580522,0.59475376,117830.0,117820.0,0.0163]
[1752875580754,0.17825296,117810.0,117800.0,0.28805105]
[1752875580960,0.18029296,117810.0,117800.0,0.27215105]
[1752875581168,0.18029296,117810.0,117780.0,0.0004]
[1752875581169,0.52677256,117790.0,117780.0,0.0004]
[1752875581371,1.31244579,117790.0,117780.0,0.0004]
[1752875581586,1.33077579,117790.0,117780.0,0.0004]
[1752875581856,1.33077579,117790.0,117780.0,1e-08]
[1752875582049,0.51831351,117770.0,117760.0,1e-08]
[1752875582255,0.94632541,117770.0,117760.0,0.00049718]
[1752875582486,0.93178456,117770.0,117760.0,0.00049718]
[1752875582688,0.93811556,117770.0,117760.0,0.00049718]
[1752875583118,1.02953474,117770.0,117760.0,0.00049718]
[1752875583326,1.20080464,117770.0,117760.0,0.00049718]
[1752875584068,1.20180464,117770.0,117760.0,0.00049718]
[1752875584276,1.20280464,117770.0,117760.0,0.00049718]
[1752875584546,1.21453184,117770.0,117760.0,0.00049718]
[1752875584695,1.12877222,117770.0,117760.0,0.00049718]
[1752875584903,1.12877222,117770.0,117760.0,0.01679718]
[1752875587856,1.14454008,117770.0,117760.0,0.01679718]
[1752875588284,1.14410008,117770.0,117760.0,0.01679718]
[1752875588850,0.78052985,117770.0,117760.0,0.01679718]
[1752875589083,1.14410008,117770.0,117760.0,0.01679718]
[1752875589272,1.19595748,117770.0,117760.0,0.01679718]
[1752875589478,1.19593778,117770.0,117760.0,0.01679718]
[1752875589686,1.18018962,117770.0,117760.0,0.01679718]
[1752875590913,1.17725962,117770.0,117760.0,0.01887718]
[1752875592156,1.18018962,117770.0,117760.0,0.01887718]
[1752875592599,1.18018962,117770.0,117760.0,0.01679718]
[1752875593234,1.17974962,117770.0,117760.0,0.01679718]
[1752875595400,1.19547472,117770.0,117760.0,0.01679718]
[1752875596219,0.83190449,117770.0,117760.0,0.01679718]
[1752875596424,1.19547472,117770.0,117760.0,0.01679718]
[1752875597426,1.18374752,117770.0,117760.0,0.01679718]
[1752875601497,0.82017729,117770.0,117760.0,0.01679718]
[1752875601808,1.18374752,117770.0,117760.0,0.01679718]
[1752875603553,0.82017729,117770.0,117760.0,0.01679718]
[1752875603724,1.18374752,117770.0,117760.0,0.01679718]
[1752875604081,1.19524316,117770.0,117760.0,0.01679718]
[1752875604284,0.83167293,117770.0,117760.0,0.01679718]
[1752875604721,1.19524316,117770.0,117760.0,0.01679718]
[1752875605550,0.83167293,117770.0,117760.0,0.01679718]
[1752875605754,0.77981553,117770.0,117760.0,0.01679718]
[1752875605989,1.14338576,117770.0,117760.0,0.01679718]
[1752875608651,1.00498576,117770.0,117760.0,0.01679718]
[1752875608880,1.14258576,117770.0,117760.0,0.01679718]
[1752875609080,1.22834538,117770.0,117760.0,0.01679718]
[1752875609283,0.86477515,117770.0,117760.0,0.01679718]
[1752875609483,1.22834538,117770.0,117760.0,0.01679718]
[1752875613332,1.23431184,117770.0,117760.0,0.01679718]
[1752875614069,1.22834538,117770.0,117760.0,0.01679718]
[1752875614491,1.2343153,117770.0,117760.0,0.01679718]
[1752875615154,1.2185902,117770.0,117760.0,0.01679718]
[1752875615365,1.23450999,117770.0,117760.0,0.01679718]
[1752875615711,0.87093976,117770.0,117760.0,0.01679718]
[1752875615919,1.22854007,117770.0,117760.0,0.01679718]
[1752875616736,0.86496984,117770.0,117760.0,0.01679718]
[1752875616936,1.22854007,117770.0,117760.0,0.01679718]
[1752875617903,0.84905005,117770.0,117760.0,0.01679718]
[1752875618034,0.76329043,117770.0,117760.0,0.01679718]
[1752875618231,0.76329043,117770.0,117760.0,0.03289718]
[1752875618441,1.12686066,117770.0,117760.0,0.03289718]
[1752875623387,0.98633066,117770.0,117760.0,0.03807718]
[1752875623512,1.20889028,117770.0,117760.0,0.03807718]
[1752875623937,1.20889028,117770.0,117760.0,0.03504718]
[1752875624153,1.21194028,117770.0,117760.0,0.03504718]
[1752875624354,1.21194028,117770.0,117760.0,0.03289718]
[1752875625922,0.84837005,117770.0,117760.0,0.03289718]
[1752875626128,1.21194028,117770.0,117760.0,0.03289718]
[1752875630780,0.84837005,117770.0,117760.0,0.03289718]
[1752875630921,1.12618066,117770.0,117760.0,0.03289718]
[1752875633551,1.12618066,117770.0,117760.0,0.01679718]
[1752875633792,1.12618066,117770.0,117760.0,0.03239718]
[1752875635082,1.03527904,117770.0,117760.0,0.03239718]
[1752875635281,1.12103866,117770.0,117760.0,0.03239718]
[1752875635885,1.12103866,117770.0,117760.0,0.01679718]
[1752875637679,1.12103866,117770.0,117760.0,0.03339718]
[1752875639855,0.84837005,117770.0,117760.0,0.03339718]
[1752875640082,1.12103866,117770.0,117760.0,0.03339718]
[1752875642306,1.12103866,117770.0,117760.0,0.01679718]
[1752875642512,1.12103866,117770.0,117760.0,0.03259718]
[1752875642767,1.11763766,117770.0,117760.0,0.03259718]
[1752875646874,0.84496905,117770.0,117760.0,0.03259718]
[1752875647083,1.11763766,117770.0,117760.0,0.03259718]
[1752875648185,0.84496905,117770.0,117760.0,0.03259718]
[1752875648372,1.11763766,117770.0,117760.0,0.03259718]
[1752875649174,0.98083766,117770.0,117760.0,0.03259718]
[1752875649439,1.11723766,117770.0,117760.0,0.03259718]
[1752875649748,1.11711766,117770.0,117760.0,0.03259718]
[1752875650181,1.11715766,117770.0,117760.0,0.03259718]
[1752875650993,0.98083766,117770.0,117760.0,0.03259718]
[1752875651160,1.11711766,117770.0,117760.0,0.03259718]
[1752875652575,1.11711766,117770.0,117760.0,0.03457718]
[1752875652803,0.89202804,117770.0,117760.0,0.03760718]
[1752875652983,1.02830804,117770.0,117760.0,0.03760718]
[1752875653232,1.02830804,117770.0,117760.0,0.03457718]
[1752875654550,1.03154804,117770.0,117760.0,0.03457718]
[1752875654793,1.11730766,117770.0,117760.0,0.03259718]
[1752875655605,1.11731766,117770.0,117760.0,0.03259718]
[1752875656899,0.84464905,117770.0,117760.0,0.03259718]
[1752875657497,1.11731766,117770.0,117760.0,0.03259718]
[1752875658983,1.11202766,117770.0,117760.0,0.03259718]
[1752875659265,1.11731766,117770.0,117760.0,0.03259718]
[1752875661127,1.03155804,117770.0,117760.0,0.03259718]
[1752875661321,1.03155804,117770.0,117760.0,0.01679718]
[1752875662286,1.0200624,117770.0,117760.0,0.01679718]
[1752875662603,1.0197424,117770.0,117760.0,0.01679718]
[1752875662807,1.0197424,117770.0,117760.0,0.03289718]
[1752875663029,1.10550202,117770.0,117760.0,0.03289718]
[1752875664262,0.83283341,117770.0,117760.0,0.03289718]
[1752875664399,1.10550202,117770.0,117760.0,0.03289718]
[1752875665972,1.11641156,117770.0,117760.0,0.03289718]
[1752875666320,1.03065194,117770.0,117760.0,0.03289718]
[1752875669629,0.75798333,117770.0,117760.0,0.03289718]
[1752875669864,1.03065194,117770.0,117760.0,0.03289718]
[1752875674201,1.40623455,117770.0,117760.0,0.00049718]
[1752875674452,1.40623455,117770.0,117760.0,1e-08]
[1752875674655,1.49199417,117770.0,117760.0,1e-08]
[1752875675012,1.50759417,117770.0,117760.0,1e-08]
[1752875675832,1.49199417,117770.0,117760.0,1e-08]
[1752875676027,1.50759417,117770.0,117760.0,1e-08]
[1752875676402,1.49199417,117770.0,117760.0,1e-08]
[1752875676840,1.76466278,117770.0,117760.0,1e-08]
[1752875677049,1.49199417,117770.0,117760.0,1e-08]
[1752875677256,1.50759417,117770.0,117760.0,1e-08]
[1752875677848,0.8938838,117770.0,117760.0,1e-08]
[1752875678126,1.43822102,117770.0,117760.0,1e-08]
[1752875679039,1.43722102,117770.0,117760.0,1e-08]
[1752875679194,1.45312812,117770.0,117760.0,1e-08]
[1752875679381,1.45512812,117770.0,117760.0,1e-08]
[1752875679581,0.9097909,117770.0,117760.0,1e-08]
[1752875679787,1.45912812,117770.0,117760.0,1e-08]
[1752875680185,1.44117102,117770.0,117760.0,1e-08]
[1752875680515,0.8958338,117770.0,117760.0,1e-08]
[1752875680851,1.44117102,117770.0,117760.0,1e-08]
[1752875681552,1.45382879,117770.0,117760.0,1e-08]
[1752875682111,1.43793102,117770.0,117760.0,1e-08]
[1752875683283,0.8925938,117770.0,117760.0,1e-08]
[1752875683487,1.43793102,117770.0,117760.0,1e-08]
[1752875684301,1.45382515,117770.0,117760.0,1e-08]
[1752875685674,1.44882515,117770.0,117760.0,1e-08]
[1752875686572,1.44881898,117770.0,117760.0,1e-08]
[1752875687208,1.43793102,117770.0,117760.0,1e-08]
[1752875687824,1.43293102,117770.0,117760.0,1e-08]
[1752875692549,1.4488171,117770.0,117760.0,1e-08]
[1752875693359,1.44881741,117770.0,117760.0,1e-08]
[1752875695234,0.1928695,117760.0,117750.0,1e-08]
[1752875695475,1.69633698,117760.0,117750.0,1e-08]
[1752875695620,1.15099976,117760.0,117750.0,1e-08]
[1752875695779,1.13519976,117760.0,117750.0,1e-08]
[1752875695983,1.15199976,117760.0,117750.0,1e-08]
[1752875696400,1.15499976,117760.0,117750.0,1e-08]
[1752875706210,1.17091317,117760.0,117750.0,1e-08]
[1752875706411,0.89824456,117760.0,117750.0,1e-08]
[1752875707421,1.17091317,117760.0,117750.0,1e-08]
[1752875707616,1.17091317,117760.0,117750.0,0.03230001]
[1752875707825,1.17091317,117760.0,117750.0,1e-08]
[1752875708550,1.44358178,117760.0,117750.0,1e-08]
[1752875709678,1.44358537,117760.0,117750.0,1e-08]
[1752875710293,1.42766837,117760.0,117750.0,1e-08]
[1752875710517,1.44356677,117760.0,117750.0,1e-08]
[1752875716213,1.4435697,117760.0,117750.0,1e-08]
[1752875716351,1.4594697,117760.0,117750.0,1e-08]
[1752875717166,0.91413248,117760.0,117750.0,1e-08]
[1752875717411,1.4435697,117760.0,117750.0,1e-08]
[1752875720579,1.71623831,117760.0,117750.0,1e-08]
[1752875720782,1.4435697,117760.0,117750.0,1e-08]
[1752875727377,1.42766837,117760.0,117750.0,1e-08]
[1752875727581,1.44357543,117760.0,117750.0,1e-08]
[1752875729129,1.46950939,117760.0,117750.0,1e-08]
[1752875731399,1.742178,117760.0,117750.0,1e-08]
[1752875731811,1.46950939,117760.0,117750.0,1e-08]
[1752875743148,1.742178,117760.0,117750.0,1e-08]
[1752875743357,1.74217881,117760.0,117750.0,1e-08]
[1752875744921,1.77357881,117760.0,117750.0,1e-08]
[1752875745159,0.76962187,117750.0,117740.0,1e-08]
[1752875745351,1.0183568,117750.0,117740.0,1e-08]
[1752875745590,0.45801958,117750.0,117740.0,1e-08]
[1752875745799,0.47351958,117750.0,117740.0,1e-08]
[1752875746007,0.45801958,117750.0,117740.0,1e-08]
[1752875746206,0.32261958,117750.0,117740.0,1e-08]
[1752875746381,0.47347958,117750.0,117740.0,1e-08]
[1752875747547,0.81447958,117750.0,117740.0,1e-08]
[1752875748397,0.83137856,117750.0,117740.0,1e-08]
[1752875749605,0.89975171,117750.0,117740.0,1e-08]
[1752875752175,0.83137856,117750.0,117740.0,1e-08]
[1752875756423,0.8313636,117750.0,117740.0,1e-08]
[1752875757869,0.8475636,117750.0,117740.0,1e-08]
[1752875759460,0.8508136,117750.0,117740.0,1e-08]
[1752875759700,0.51837409,117730.0,117720.0,0.00358]
[1752875759919,0.79088178,117730.0,117720.0,0.00362977]
[1752875760977,1.336219,117730.0,117720.0,0.00362977]
[1752875761206,1.336219,117730.0,117720.0,0.00462977]
[1752875761317,1.336219,117730.0,117720.0,0.00562977]
[1752875762786,1.336219,117730.0,117720.0,0.03742977]
[1752875762989,1.336219,117730.0,117720.0,0.03542977]
[1752875764768,1.337219,117730.0,117720.0,0.03542977]